fUSD/lending_fUSD_20260703
["ID","MTS","AMOUNT","RATE_DAILY","PERIOD"]
[426934435,1783026639000,-566.04990643,0.0001737,2]
[426934434,1783026639000,-566.04990643,0.0001737,2]
[426934437,1783026639000,-566.04990643,0.0001737,2]
[426934439,1783026639000,-500.0,0.0001737,2]
[426934447,1783026639000,-500.0,0.0001737,2]
[426934440,1783026639000,-500.0,0.0001737,2]
[426934470,1783026639000,-599.42519347,0.0001737,2]
[426934526,1783026639000,-10201.1926559,0.000205,2]
[426934473,1783026639000,-599.42519347,0.0001737,2]
[426934503,1783026639000,-368.36,0.00017645,2]
[426934506,1783026639000,-508.75,0.00017905,2]
[426934507,1783026639000,-368.41083131,0.00017905,2]
[426934502,1783026639000,-500.0,0.00017551,2]
[426934509,1783026639000,-225.49,0.00018053,2]
[426934510,1783026639000,-2509.45,0.00018219,2]
[426934511,1783026639000,-213.83,0.00018387,2]
[426934521,1783026639000,-508.75,0.00020143,2]
[426934513,1783026639000,-2509.45,0.00018643,2]
[426934512,1783026639000,-996.46,0.00018392,2]
[426934514,1783026639000,-166.37,0.00018678,2]
[426934516,1783026639000,-166.37,0.00019419,2]
[426934504,1783026639000,-2509.45,0.00017796,2]
[426934517,1783026639000,-1852.42,0.00019437,2]
[426934519,1783026639000,-106709.62,0.00019626,2]
[426934520,1783026639000,-996.22485396,0.00019828,2]
[426934515,1783026639000,-2607.96,0.00018976,2]
[426934524,1783026639000,-1641.00731079,0.0002026,2]
[426934523,1783026639000,-166.37,0.00020159,2]
[426934525,1783026639000,-1000.0,0.00020295,2]
[426934527,1783026639000,-160.0,0.00020599,2]
[426934529,1783026639000,-400.0,0.000206,2]
[426934530,1783026639000,-2029.8539641,0.000206,2]
[426934532,1783026639000,-213.83,0.00020685,2]
[426934531,1783026639000,-166.76895015,0.000206,2]
[426934469,1783026639000,-599.42519347,0.0001737,2]
[426934518,1783026639000,-174.12,0.00019605,2]
[426934497,1783026639000,-1129.91760109,0.0001737,2]
[426934528,1783026639000,-216.69616408,0.00020599,2]
[426934505,1783026639000,-175.84951452,0.00017825,2]
[426934499,1783026639000,-1129.91760109,0.0001737,2]
[426934475,1783026639000,-599.42519347,0.0001737,2]
[426934482,1783026639000,-599.42519347,0.0001737,2]
[426934480,1783026639000,-599.42519347,0.0001737,2]
[426934478,1783026639000,-599.42519347,0.0001737,2]
[426934477,1783026639000,-599.42519347,0.0001737,2]
[426934479,1783026639000,-599.42519347,0.0001737,2]
[426934476,1783026639000,-599.42519347,0.0001737,2]
[426934483,1783026639000,-599.42519347,0.0001737,2]
[426934481,1783026639000,-599.42519347,0.0001737,2]
[426934484,1783026639000,-599.42519347,0.0001737,2]
[426934485,1783026639000,-599.42519347,0.0001737,2]
[426934487,1783026639000,-599.42519347,0.0001737,2]
[426934474,1783026639000,-599.42519347,0.0001737,2]
[426934491,1783026639000,-599.42519347,0.0001737,2]
[426934486,1783026639000,-599.42519347,0.0001737,2]
[426934500,1783026639000,-2509.45,0.00017372,2]
[426934508,1783026639000,-166.37,0.00017938,2]
[426934498,1783026639000,-1129.91760109,0.0001737,2]
[426934490,1783026639000,-599.42519347,0.0001737,2]
[426934489,1783026639000,-599.42519347,0.0001737,2]
[426934501,1783026639000,-500.0,0.00017389,2]
[426934495,1783026639000,-500.0,0.0001737,2]
[426934496,1783026639000,-250.0,0.0001737,2]
[426934488,1783026639000,-599.42519347,0.0001737,2]
[426934494,1783026639000,-500.0,0.0001737,2]
[426934492,1783026639000,-500.0,0.0001737,2]
[426934493,1783026639000,-500.0,0.0001737,2]
[426934581,1783026640000,-150.0,0.00023014,2]
[426934571,1783026640000,-159.43318362,0.00022366,7]
[426934569,1783026640000,-200.0,0.00022228,2]
[426934564,1783026640000,-151.0,0.00021979,2]
[426934562,1783026640000,-151.0,0.00021979,2]
[426934565,1783026640000,-151.0,0.00021979,2]
[426934566,1783026640000,-2029.8539641,0.000221,2]
[426934570,1783026640000,-2029.8539641,0.000223,2]
[426934568,1783026640000,-839.23,0.0002213,2]
[426934563,1783026640000,-151.0,0.00021979,2]
[426934567,1783026640000,-4948.17,0.00022126,2]
[426934578,1783026640000,-150.0,0.00022564,2]
[426934572,1783026640000,-508.75,0.00022382,2]
[426934576,1783026640000,-150.0,0.0002255,2]
[426934577,1783026640000,-150.0,0.0002255,120]
[426934580,1783026640000,-213.83,0.00022984,2]
[426934579,1783026640000,-154.98233742,0.0002267,120]
[426934574,1783026640000,-3412.86,0.00022489,2]
[426934575,1783026640000,-2029.8539641,0.000225,2]
[426934583,1783026640000,-420.74669406,0.00023866,7]
[426934582,1783026640000,-174.12,0.00023526,2]
[426934585,1783026640000,-157.0,0.00024,2]
[426934559,1783026640000,-213.0,0.00021974,2]
[426934584,1783026640000,-901.0,0.00024,2]
[426934573,1783026640000,-1012.39,0.00022466,2]
[426934560,1783026640000,-439.47952883,0.00021974,2]
[426934556,1783026640000,-5000.0,0.00021918,2]
[426934561,1783026640000,-151.0,0.00021979,2]
[426934586,1783026640000,-155.0,0.00024,2]
[426934533,1783026640000,-400.0,0.000208,2]
[426934534,1783026640000,-2029.8539641,0.000208,2]
[426934537,1783026640000,-344.09285902,0.00020956,2]
[426934538,1783026640000,-476.36084391,0.00021,2]
[426934535,1783026640000,-166.76895015,0.000208,2]
[426934539,1783026640000,-400.0,0.00021,2]
[426934536,1783026640000,-166.37,0.00020899,2]
[426934541,1783026640000,-166.76895015,0.00021,2]
[426934544,1783026640000,-476.36084391,0.000212,2]
[426934542,1783026640000,-150.0,0.00021,2]
[426934540,1783026640000,-2029.8539641,0.00021,2]
[426934543,1783026640000,-221.28574552,0.00021132,2]
[426934546,1783026640000,-2029.8539641,0.000212,2]
[426934545,1783026640000,-400.0,0.000212,2]
[426934547,1783026640000,-528.54,0.000213,2]
[426934548,1783026640000,-476.36084391,0.000214,2]
[426934549,1783026640000,-400.0,0.000214,2]
[426934551,1783026640000,-476.36084391,0.000216,2]
[426934552,1783026640000,-2029.8539641,0.000216,2]
[426934553,1783026640000,-307.26,0.00021644,4]
[426934557,1783026640000,-150.0,0.00021918,2]
[426934555,1783026640000,-2029.8539641,0.000219,2]
[426934550,1783026640000,-2029.8539641,0.000214,2]
[426934554,1783026640000,-476.36084391,0.000219,2]
[426934558,1783026640000,-150.0,0.00021974,2]
[426934590,1783026640000,-439.0,0.00024,7]
[426934587,1783026640000,-158.0,0.00024,2]
[426934591,1783026640000,-156.0,0.00024,2]
[426934619,1783026640000,-164.61468301,0.00026,2]
[426934617,1783026640000,-150.0,0.00025373,2]
[426934624,1783026640000,-225.0,0.00026,2]
[426934621,1783026640000,-206.0,0.00026,2]
[426934626,1783026640000,-150.0,0.00026031,5]
[426934622,1783026640000,-322.0,0.00026,2]
[426934625,1783026640000,-231.0,0.00026,2]
[426934623,1783026640000,-151.0,0.00026,2]
[426934628,1783026640000,-154.94615298,0.00026039,2]
[426934632,1783026640000,-157.81176328,0.00026275,2]
[426934635,1783026640000,-162.27306108,0.00026275,2]
[426934620,1783026640000,-158.0,0.00026,2]
[426934633,1783026640000,-159.05316249,0.00026275,2]
[426934630,1783026640000,-170.64087513,0.00026203,2]
[426934631,1783026640000,-179.1093529,0.00026275,2]
[426934629,1783026640000,-152.0,0.00026152,3]
[426934637,1783026640000,-184.52312731,0.00026275,2]
[426934639,1783026640000,-164.17751213,0.00026275,2]
[426934642,1783026640000,-515.67272967,0.00026279,2]
[426934636,1783026640000,-159.69868359,0.00026275,2]
[426934643,1783026640000,-215.16149615,0.00026279,2]
[426934640,1783026640000,-500.0,0.00026279,2]
[426934641,1783026640000,-500.0,0.00026279,2]
[426934638,1783026640000,-168.73726931,0.00026275,2]
[426934634,1783026640000,-177.04195843,0.00026275,2]
[426934618,1783026640000,-171.0,0.0002552,2]
[426934627,1783026640000,-154.98233742,0.00026037,120]
[426934616,1783026640000,-1502.3448,0.00025366,14]
[426934613,1783026640000,-231.0,0.00025,2]
[426934588,1783026640000,-206.0,0.00024,2]
[426934592,1783026640000,-151.0,0.00024,2]
[426934594,1783026640000,-231.0,0.00024,2]
[426934593,1783026640000,-225.0,0.00024,2]
[426934604,1783026640000,-169.7,0.00024658,2]
[426934595,1783026640000,-150.0,0.00024164,2]
[426934596,1783026640000,-7533.37,0.00024174,2]
[426934602,1783026640000,-508.75,0.0002462,2]
[426934599,1783026640000,-152.77,0.00024174,2]
[426934597,1783026640000,-232.6,0.00024174,2]
[426934598,1783026640000,-361.78,0.00024174,2]
[426934600,1783026640000,-4852.78,0.00024174,2]
[426934589,1783026640000,-322.0,0.00024,2]
[426934606,1783026640000,-742.24704102,0.00024866,7]
[426934603,1783026640000,-1000.0,0.00024658,2]
[426934605,1783026640000,-1243.40846435,0.00024828,2]
[426934609,1783026640000,-206.0,0.00025,2]
[426934607,1783026640000,-155.0,0.00025,2]
[426934610,1783026640000,-322.0,0.00025,2]
[426934611,1783026640000,-151.0,0.00025,2]
[426934615,1783026640000,-1110.35718248,0.00025366,14]
[426934601,1783026640000,-154.94615304,0.00024397,2]
[426934608,1783026640000,-158.0,0.00025,2]
[426934614,1783026640000,-213.83,0.00025282,120]
[426934612,1783026640000,-225.0,0.00025,2]
[426934682,1783026641000,-218.19778097,0.0002704,2]
[426934675,1783026641000,-322.0,0.00027,2]
[426934683,1783026641000,-213.28225698,0.0002704,2]
[426934681,1783026641000,-226.54096389,0.0002704,2]
[426934678,1783026641000,-153.96868605,0.0002704,2]
[426934671,1783026641000,-508.75,0.00026858,2]
[426934674,1783026641000,-206.0,0.00027,2]
[426934677,1783026641000,-231.0,0.00027,2]
[426934672,1783026641000,-215.21189417,0.00027,3]
[426934676,1783026641000,-225.0,0.00027,2]
[426934692,1783026641000,-161.17033135,0.00027113,2]
[426934679,1783026641000,-341.28175026,0.0002704,2]
[426934684,1783026641000,-251.0,0.00027072,5]
[426934691,1783026641000,-354.08391687,0.00027113,2]
[426934685,1783026641000,-203.38720443,0.00027113,2]
[426934687,1783026641000,-358.21870581,0.00027113,2]
[426934689,1783026641000,-248.03102736,0.00027113,2]
[426934688,1783026641000,-318.10632498,0.00027113,2]
[426934686,1783026641000,-315.62352657,0.00027113,2]
[426934694,1783026641000,-256.21837034,0.00027113,2]
[426934693,1783026641000,-233.05819113,0.00027113,2]
[426934701,1783026641000,-369.04625463,0.00027113,2]
[426934703,1783026641000,-247.68524629,0.00027113,2]
[426934696,1783026641000,-280.98809535,0.00027113,2]
[426934700,1783026641000,-246.47167041,0.00027113,2]
[426934690,1783026641000,-324.54612217,0.00027113,2]
[426934673,1783026641000,-158.0,0.00027,2]
[426934644,1783026641000,-196.49114256,0.00026279,2]
[426934680,1783026641000,-169.74676424,0.0002704,2]
[426934702,1783026641000,-250.52322077,0.00027113,2]
[426934645,1783026641000,-500.0,0.00026279,2]
[426934657,1783026641000,-500.0,0.00026589,2]
[426934647,1783026641000,-511.4469011,0.00026279,2]
[426934648,1783026641000,-500.0,0.00026279,2]
[426934646,1783026641000,-500.0,0.00026279,2]
[426934651,1783026641000,-500.0,0.00026589,2]
[426934649,1783026641000,-500.0,0.00026279,2]
[426934653,1783026641000,-500.0,0.00026589,2]
[426934652,1783026641000,-500.0,0.00026589,2]
[426934655,1783026641000,-500.0,0.00026589,2]
[426934650,1783026641000,-500.0,0.00026589,2]
[426934669,1783026641000,-150.0,0.00026641,2]
[426934654,1783026641000,-500.0,0.00026589,2]
[426934658,1783026641000,-500.0,0.00026589,2]
[426934659,1783026641000,-500.0,0.00026589,2]
[426934660,1783026641000,-500.0,0.00026589,2]
[426934662,1783026641000,-259.36806219,0.00026589,2]
[426934663,1783026641000,-671.0,0.0002659,5]
[426934664,1783026641000,-670.0,0.0002659,5]
[426934668,1783026641000,-887.95,0.00026591,20]
[426934665,1783026641000,-675.0,0.0002659,5]
[426934666,1783026641000,-680.0,0.0002659,5]
[426934661,1783026641000,-500.0,0.00026589,2]
[426934667,1783026641000,-422.15,0.00026591,2]
[426934670,1783026641000,-503.0,0.00026758,11]
[426934656,1783026641000,-577.72670713,0.00026589,2]
[426934699,1783026641000,-319.39736717,0.00027113,2]
[426934758,1783026641000,-305.0985428,0.00027672,2]
[426934698,1783026641000,-204.12687834,0.00027113,2]
[426934735,1783026641000,-222.61050611,0.00027598,2]
[426934730,1783026641000,-160.0,0.000274,10]
[426934736,1783026641000,-184.38530394,0.00027598,2]
[426934733,1783026641000,-213.83,0.00027581,120]
[426934734,1783026641000,-232.87669435,0.00027598,2]
[426934738,1783026641000,-163.60328364,0.00027598,2]
[426934740,1783026641000,-244.60036634,0.00027598,2]
[426934745,1783026641000,-453.08192778,0.00027598,2]
[426934746,1783026641000,-436.39556194,0.00027598,2]
[426934748,1783026641000,-239.58861894,0.00027598,2]
[426934747,1783026641000,-426.56451396,0.00027598,2]
[426934749,1783026641000,-151.77471312,0.00027598,2]
[426934739,1783026641000,-360.6492278,0.00027598,2]
[426934742,1783026641000,-511.92262538,0.00027598,2]
[426934744,1783026641000,-230.10383159,0.00027598,2]
[426934743,1783026641000,-339.49352847,0.00027598,2]
[426934741,1783026641000,-301.88305538,0.00027598,2]
[426934750,1783026641000,-235.88731213,0.00027598,2]
[426934751,1783026641000,-228.37996432,0.00027598,2]
[426934755,1783026641000,-410.86017061,0.00027672,2]
[426934752,1783026641000,-198.50365958,0.00027598,2]
[426934757,1783026641000,-537.32805871,0.00027672,2]
[426934756,1783026641000,-473.43528985,0.00027672,2]
[426934753,1783026641000,-240.68752877,0.00027598,2]
[426934697,1783026641000,-233.73425612,0.00027113,2]
[426934737,1783026641000,-307.93737209,0.00027598,2]
[426934732,1783026641000,-1127.25925004,0.000275,7]
[426934754,1783026641000,-406.77440886,0.00027672,2]
[426934728,1783026641000,-9999.99,0.00027397,2]
[426934731,1783026641000,-236.27,0.000274,2]
[426934704,1783026641000,-337.47453862,0.00027113,2]
[426934706,1783026641000,-2177.37,0.0002712,7]
[426934710,1783026641000,-196.44061727,0.00027397,2]
[426934707,1783026641000,-243.4,0.00027121,7]
[426934709,1783026641000,-1000.0,0.00027397,2]
[426934705,1783026641000,-328.35502426,0.00027113,2]
[426934708,1783026641000,-5907.52218076,0.00027297,2]
[426934715,1783026641000,-5322.99,0.00027397,10]
[426934712,1783026641000,-215.21189417,0.00027397,10]
[426934711,1783026641000,-1500.0,0.00027397,2]
[426934714,1783026641000,-300.0,0.00027397,2]
[426934713,1783026641000,-160.0,0.00027397,10]
[426934695,1783026641000,-268.33472547,0.00027113,2]
[426934718,1783026641000,-499.99,0.00027397,2]
[426934717,1783026641000,-205.43008531,0.00027397,2]
[426934729,1783026641000,-9999.99,0.00027397,2]
[426934724,1783026641000,-299.99,0.00027397,12]
[426934721,1783026641000,-1392.6,0.00027397,2]
[426934722,1783026641000,-9999.99,0.00027397,2]
[426934727,1783026641000,-9552.31,0.00027397,5]
[426934726,1783026641000,-999.99,0.00027397,2]
[426934723,1783026641000,-4999.99,0.00027397,2]
[426934720,1783026641000,-617.26,0.00027397,2]
[426934719,1783026641000,-1824.02,0.00027397,2]
[426934716,1783026641000,-4435.82,0.00027397,10]
[426934725,1783026641000,-50366.04,0.00027397,2]
[426934795,1783026642000,-231.0,0.00028,2]
[426934791,1783026642000,-158.0,0.00028,2]
[426934788,1783026642000,-154.94615298,0.00027681,2]
[426934798,1783026642000,-5907.52218074,0.00028342,2]
[426934790,1783026642000,-150.0,0.00027973,2]
[426934794,1783026642000,-225.0,0.00028,2]
[426934792,1783026642000,-206.0,0.00028,2]
[426934796,1783026642000,-686.0,0.00028203,5]
[426934805,1783026642000,-243.4,0.00029203,7]
[426934789,1783026642000,-237.18007815,0.00027913,2]
[426934793,1783026642000,-322.0,0.00028,2]
[426934802,1783026642000,-334.0,0.00029,2]
[426934810,1783026642000,-154.98233742,0.00029404,120]
[426934800,1783026642000,-169.0,0.00029,2]
[426934799,1783026642000,-152.0,0.00028612,4]
[426934811,1783026642000,-1490.59207473,0.00029828,30]
[426934801,1783026642000,-209.0,0.00029,2]
[426934807,1783026642000,-150.0,0.00029372,2]
[426934809,1783026642000,-2177.37,0.00029389,7]
[426934808,1783026642000,-5907.52218074,0.00029387,2]
[426934803,1783026642000,-230.0,0.00029,2]
[426934804,1783026642000,-250.0,0.00029,2]
[426934806,1783026642000,-154.94615298,0.00029323,2]
[426934787,1783026642000,-228.34329624,0.00027672,2]
[426934797,1783026642000,-2177.37,0.00028254,7]
[426934784,1783026642000,-316.7797948,0.00027672,2]
[426934772,1783026642000,-377.03421397,0.00027672,2]
[426934781,1783026642000,-501.04644154,0.00027672,2]
[426934761,1783026642000,-496.06205472,0.00027672,2]
[426934759,1783026642000,-181.8222043,0.00027672,2]
[426934760,1783026642000,-477.15948747,0.00027672,2]
[426934762,1783026642000,-486.81918325,0.00027672,2]
[426934763,1783026642000,-531.1258753,0.00027672,2]
[426934770,1783026642000,-561.9761907,0.00027672,2]
[426934766,1783026642000,-466.11638226,0.00027672,2]
[426934767,1783026642000,-512.43674069,0.00027672,2]
[426934771,1783026642000,-467.46851225,0.00027672,2]
[426934774,1783026642000,-408.25375667,0.00027672,2]
[426934765,1783026642000,-432.94070561,0.00027672,2]
[426934783,1783026642000,-495.37049259,0.00027672,2]
[426934768,1783026642000,-357.03717013,0.00027672,2]
[426934764,1783026642000,-164.22257492,0.00027672,2]
[426934773,1783026642000,-479.09605076,0.00027672,2]
[426934776,1783026642000,-492.94334082,0.00027672,2]
[426934775,1783026642000,-239.94227655,0.00027672,2]
[426934782,1783026642000,-203.55116765,0.00027672,2]
[426934778,1783026642000,-553.56938194,0.00027672,2]
[426934780,1783026642000,-299.39033585,0.00027672,2]
[426934779,1783026642000,-208.00779828,0.00027672,2]
[426934786,1783026642000,-492.53253638,0.00027672,2]
[426934785,1783026642000,-506.21180794,0.00027672,2]
[426934777,1783026642000,-322.34066271,0.00027672,2]
[426934769,1783026642000,-536.66945094,0.00027672,2]
[426934812,1783026642000,-500.0,0.000299,10]
[426934827,1783026642000,-150.0,0.00030841,2]
[426934815,1783026642000,-169.7,0.00030137,2]
[426934849,1783026642000,-500.0,0.00031405,120]
[426934855,1783026642000,-500.63745872,0.00031405,120]
[426934853,1783026642000,-500.0,0.00031405,7]
[426934858,1783026642000,-179.2683589,0.00031435,2]
[426934861,1783026642000,-1354.74078967,0.00031485,2]
[426934864,1783026642000,-500.0,0.00031599,120]
[426934866,1783026642000,-500.0,0.00031599,14]
[426934872,1783026642000,-486.56900621,0.0003178,30]
[426934867,1783026642000,-600.0,0.00031599,2]
[426934860,1783026642000,-5907.52218074,0.00031476,2]
[426934862,1783026642000,-173.89116102,0.00031507,15]
[426934845,1783026642000,-500.0,0.00031405,120]
[426934870,1783026642000,-199.02025944,0.00031659,30]
[426934871,1783026642000,-262.92,0.00031672,3]
[426934874,1783026642000,-573.57,0.00031781,7]
[426934873,1783026642000,-642.78,0.00031781,7]
[426934875,1783026642000,-282462.0,0.00031874,20]
[426934878,1783026642000,-2105.0518,0.00032,2]
[426934876,1783026642000,-1000.0,0.000319,11]
[426934879,1783026642000,-7533.37,0.00032232,7]
[426934877,1783026642000,-199.02025944,0.00031963,30]
[426934880,1783026642000,-361.78,0.00032232,7]
[426934881,1783026642000,-232.6,0.00032232,7]
[426934814,1783026642000,-800.0,0.0003,2]
[426934869,1783026642000,-2177.37,0.00031658,14]
[426934846,1783026642000,-500.0,0.00031405,120]
[426934868,1783026642000,-500.0,0.00031599,60]
[426934844,1783026642000,-1000.0,0.00031405,2]
[426934843,1783026642000,-500.0,0.00031405,120]
[426934816,1783026642000,-199.02025944,0.00030137,30]
[426934813,1783026642000,-282462.0,0.00029902,20]
[426934817,1783026642000,-242.13173095,0.0003023,3]
[426934819,1783026642000,-199.02025944,0.00030441,30]
[426934818,1783026642000,-5907.52218074,0.00030431,2]
[426934821,1783026642000,-163.507,0.00030493,26]
[426934822,1783026642000,-2177.37,0.00030523,14]
[426934835,1783026642000,-1875.424,0.00031196,2]
[426934834,1783026642000,-1231.0,0.0003111,2]
[426934836,1783026642000,-955.614,0.00031196,2]
[426934823,1783026642000,-1354.74078967,0.00030554,2]
[426934820,1783026642000,-2771.857,0.00030493,26]
[426934829,1783026642000,-154.94615298,0.00030966,2]
[426934840,1783026642000,-500.0,0.00031405,120]
[426934842,1783026642000,-500.0,0.00031405,120]
[426934841,1783026642000,-500.0,0.00031405,120]
[426934838,1783026642000,-199.02025944,0.00031355,30]
[426934826,1783026642000,-199.02025944,0.00030746,30]
[426934837,1783026642000,-243.4,0.00031286,14]
[426934825,1783026642000,-250.01,0.0003067,2]
[426934828,1783026642000,-282462.0,0.00030888,20]
[426934832,1783026642000,-152.0,0.00031072,5]
[426934830,1783026642000,-199.02025944,0.0003105,30]
[426934833,1783026642000,-582.0,0.0003108,2]
[426934923,1783026643000,-9000.0,0.00033,5]
[426934918,1783026643000,-2779.56305547,0.00032942,2]
[426934934,1783026643000,-150.0,0.00033164,30]
[426934935,1783026643000,-199.02025944,0.00033181,30]
[426934924,1783026643000,-150.0,0.00033164,30]
[426934916,1783026643000,-199.02025944,0.00032877,30]
[426934914,1783026643000,-282462.0,0.00032859,20]
[426934920,1783026643000,-400.0,0.0003297,2]
[426934921,1783026643000,-700.0,0.0003297,2]
[426934919,1783026643000,-400.0,0.0003297,2]
[426934917,1783026643000,-2779.56305557,0.000329,2]
[426934925,1783026643000,-259.72419602,0.00033164,30]
[426934915,1783026643000,-500.0,0.00032877,2]
[426934926,1783026643000,-150.0,0.00033164,30]
[426934945,1783026643000,-300.0,0.00033464,2]
[426934928,1783026643000,-150.0,0.00033164,30]
[426934932,1783026643000,-167.1866142,0.00033164,30]
[426934933,1783026643000,-150.0,0.00033164,30]
[426934929,1783026643000,-154.32701166,0.00033164,30]
[426934931,1783026643000,-150.0,0.00033164,30]
[426934930,1783026643000,-157.0980069,0.00033164,30]
[426934939,1783026643000,-2779.56305547,0.00033355,2]
[426934943,1783026643000,-150.0,0.00033455,30]
[426934938,1783026643000,-1354.74078967,0.00033348,2]
[426934936,1783026643000,-300.0,0.0003325,7]
[426934944,1783026643000,-452.88695909,0.00033464,2]
[426934941,1783026643000,-243.4,0.00033368,14]
[426934913,1783026643000,-2177.37,0.00032792,14]
[426934927,1783026643000,-150.0,0.00033164,30]
[426934922,1783026643000,-160.0,0.00033,30]
[426934886,1783026643000,-150.0,0.00032276,2]
[426934911,1783026643000,-623.5,0.00032734,7]
[426934884,1783026643000,-199.02025944,0.00032268,30]
[426934885,1783026643000,-150.0,0.00032276,2]
[426934882,1783026643000,-152.77,0.00032232,7]
[426934946,1783026643000,-300.0,0.00033464,2]
[426934887,1783026643000,-175.42,0.00032276,2]
[426934889,1783026643000,-150.0,0.00032276,2]
[426934892,1783026643000,-150.0,0.00032276,2]
[426934891,1783026643000,-150.0,0.00032276,2]
[426934897,1783026643000,-150.0,0.00032383,2]
[426934894,1783026643000,-1362.0,0.00032276,2]
[426934888,1783026643000,-150.0,0.00032276,2]
[426934893,1783026643000,-3566.0,0.00032276,2]
[426934896,1783026643000,-223.0,0.00032276,2]
[426934912,1783026643000,-556.37,0.00032734,7]
[426934890,1783026643000,-150.0,0.00032276,2]
[426934895,1783026643000,-1278.0,0.00032276,2]
[426934899,1783026643000,-5907.52218074,0.00032521,2]
[426934910,1783026643000,-253.37,0.00032685,3]
[426934901,1783026643000,-656.92,0.00032546,2]
[426934900,1783026643000,-656.92,0.00032544,2]
[426934903,1783026643000,-656.92,0.00032548,2]
[426934902,1783026643000,-656.92,0.00032548,2]
[426934905,1783026643000,-656.92,0.0003255,2]
[426934909,1783026643000,-154.94615298,0.00032608,2]
[426934907,1783026643000,-656.92,0.00032552,2]
[426934906,1783026643000,-656.91,0.00032552,2]
[426934904,1783026643000,-656.92,0.0003255,2]
[426934908,1783026643000,-199.02025944,0.00032572,30]
[426934898,1783026643000,-1354.74078967,0.00032417,2]
[426934942,1783026643000,-250.01,0.0003342,2]
[426934883,1783026643000,-4852.78,0.00032232,7]
[426934947,1783026643000,-607.91868214,0.00033464,2]
[426934977,1783026643000,-523.71990303,0.00033464,2]
[426934975,1783026643000,-569.07827579,0.00033464,2]
[426934978,1783026643000,-300.0,0.00033464,2]
[426934979,1783026643000,-300.0,0.00033464,2]
[426934982,1783026643000,-300.0,0.00033464,2]
[426934976,1783026643000,-300.0,0.00033464,2]
[426934981,1783026643000,-300.0,0.00033464,2]
[426934980,1783026643000,-300.0,0.00033464,2]
[426934987,1783026643000,-454.31833835,0.00033464,2]
[426934989,1783026643000,-300.0,0.00033464,2]
[426934990,1783026643000,-300.0,0.00033464,2]
[426934988,1783026643000,-300.0,0.00033464,2]
[426934998,1783026643000,-300.0,0.00033464,2]
[426934985,1783026643000,-584.85636615,0.00033464,2]
[426934999,1783026643000,-300.0,0.00033464,2]
[426934991,1783026643000,-300.0,0.00033464,2]
[426934992,1783026643000,-300.0,0.00033464,2]
[426934997,1783026643000,-300.0,0.00033464,2]
[426935000,1783026643000,-1101.26754386,0.00033464,2]
[426934994,1783026643000,-446.20103305,0.00033464,2]
[426934996,1783026643000,-300.0,0.00033464,2]
[426934995,1783026643000,-300.0,0.00033464,2]
[426935002,1783026643000,-300.0,0.00033464,2]
[426935001,1783026643000,-300.0,0.00033464,2]
[426935003,1783026643000,-300.0,0.00033464,2]
[426935007,1783026643000,-300.0,0.00033464,2]
[426935006,1783026643000,-300.0,0.00033464,2]
[426935004,1783026643000,-300.0,0.00033464,2]
[426934993,1783026643000,-300.0,0.00033464,2]
[426934974,1783026643000,-300.0,0.00033464,2]
[426935005,1783026643000,-300.0,0.00033464,2]
[426934984,1783026643000,-300.0,0.00033464,2]
[426934986,1783026643000,-300.0,0.00033464,2]
[426934937,1783026643000,-150.0,0.00033261,30]